bitfinex/quotes_SOLUSD_20250904
["timestamp","ask_amount","ask_price","bid_price","bid_amount"]
[1757002243571,0.73,204.53,204.52,18.14863056]
[1757002243772,0.73,204.53,204.52,13.62559401]
[1757002245856,0.73,204.53,204.52,18.51509136]
[1757002246068,0.06,204.53,204.52,23.03812791]
[1757002246456,0.06,204.53,204.52,24.99751952]
[1757002246775,0.06,204.53,204.52,18.51509136]
[1757002246981,0.73,204.53,204.52,23.03812791]
[1757002247474,0.73,204.53,204.52,18.51509136]
[1757002248981,0.06,204.53,204.52,18.51509136]
[1757002249477,0.06,204.53,204.52,23.03812791]
[1757002253263,0.77,204.53,204.52,18.51509136]
[1757002253482,0.77,204.53,204.52,13.62559401]
[1757002253692,0.06,204.53,204.52,23.03812791]
[1757002256956,0.77,204.53,204.52,23.03812791]
[1757002257161,0.77,204.53,204.52,18.51509136]
[1757002257779,0.77,204.53,204.52,13.62559401]
[1757002263892,5.65925829,204.53,204.52,13.62559401]
[1757002264868,5.65925829,204.53,204.52,0.03]
[1757002266382,7.61932199,204.53,204.52,0.03]
[1757002269089,45.97932199,204.53,204.52,0.03]
[1757002277279,26.0,204.5,204.49,0.03]
[1757002277787,26.69,204.5,204.47,0.03]
[1757002277988,38.36,204.49,204.47,0.03]
[1757002278388,0.69,204.48,204.47,0.03]
[1757002279092,26.0,204.47,204.46,0.03]
[1757002279280,30.89069301,204.47,204.46,0.03]
[1757002279490,35.4715868,204.47,204.46,0.03]
[1757002280680,37.43270758,204.47,204.46,0.03]
[1757002281795,33.54181379,204.47,204.46,0.03]
[1757002282101,4.89038589,204.49,204.46,14.32559401]
[1757002282299,38.36,204.48,204.46,14.32559401]
[1757002282698,38.36,204.48,204.46,13.62559401]
[1757002283902,43.25063569,204.48,204.46,13.62559401]
[1757002284102,0.69,204.47,204.46,13.62559401]
[1757002284399,39.05,204.47,204.46,13.62559401]
[1757002285594,43.94069301,204.47,204.46,13.62559401]
[1757002285791,43.25069301,204.47,204.46,13.62559401]
[1757002287197,2.65054406,204.49,204.46,13.62559401]
[1757002287499,38.36,204.48,204.47,0.7]
[1757002287707,38.36,204.48,204.46,13.62559401]
[1757002287898,38.36,204.48,204.46,14.32559401]
[1757002288583,32.85076499,204.49,204.46,13.62559401]
[1757002288906,39.05,204.48,204.46,0.03]
[1757002289408,1.96073626,204.47,204.46,0.03]
[1757002289600,7.54142927,204.47,204.46,0.03]
[1757002293894,45.88142927,204.47,204.46,0.03]
[1757002301916,7.54142927,204.47,204.46,0.03]
[1757002302125,45.19142927,204.47,204.46,0.03]
[1757002302428,45.88142927,204.47,204.46,0.03]
[1757002305319,6.85142927,204.47,204.46,0.73]
[1757002305493,43.23069301,204.47,204.46,0.73]
[1757002305814,43.23069301,204.47,204.46,0.03]
[1757002306116,4.89069301,204.47,204.46,0.03]
[1757002306297,38.34,204.47,204.46,0.03]
[1757002306916,0.06,204.49,204.46,0.73]
[1757002307127,64.34,204.48,204.47,0.7]
[1757002307296,38.34,204.48,204.47,0.7]
[1757002308312,38.34,204.48,204.46,13.62559401]
[1757002308495,38.34,204.48,204.46,14.30559401]
[1757002308887,38.34,204.48,204.46,0.03]
[1757002309093,26.06,204.49,204.48,13.59559401]
[1757002309296,38.38,204.49,204.48,14.27559401]
[1757002311115,38.38,204.49,204.48,22.06645952]
[1757002314817,0.06,204.49,204.48,19.16604784]
[1757002315008,0.06,204.49,204.48,22.06645952]
[1757002319218,0.06,204.49,204.48,19.16604784]
[1757002319413,0.06,204.49,204.48,22.06645952]
[1757002320422,0.06,204.49,204.48,19.16604784]
[1757002320627,0.06,204.49,204.48,13.59559401]
[1757002320902,0.06,204.49,204.48,22.06645952]
[1757002321931,0.06,204.49,204.48,19.16604784]
[1757002322227,0.06,204.49,204.48,22.06645952]
[1757002326220,1e-08,204.49,204.48,33.66810624]
[1757002327521,1e-08,204.49,204.48,19.16604784]
[1757002327702,1e-08,204.49,204.48,60.36645952]
[1757002327901,1e-08,204.49,204.48,71.96810624]
[1757002328814,1e-08,204.49,204.48,60.36645952]
[1757002329018,1e-08,204.49,204.48,18.48604784]
[1757002329220,0.69000001,204.49,204.48,13.59559401]
[1757002329422,0.69000001,204.49,204.48,16.49600569]
[1757002329618,0.69000001,204.49,204.48,13.59559401]
[1757002329821,0.69000001,204.49,204.48,16.49600569]
[1757002330023,1e-08,204.49,204.48,21.38645952]
[1757002330460,0.69000001,204.49,204.48,13.59559401]
[1757002330729,0.69000001,204.49,204.48,16.49600569]
[1757002331936,0.69000001,204.49,204.48,13.59559401]
[1757002332547,0.69000001,204.49,204.47,13.62559401]
[1757002332839,0.69,204.48,204.47,13.62559401]
[1757002333250,0.69,204.48,204.47,0.03]
[1757002335540,3.58767644,204.48,204.47,0.03]
[1757002335729,0.69,204.48,204.47,0.03]
[1757002339937,1e-08,204.49,204.48,13.59559401]
[1757002340317,1e-08,204.49,204.47,2.92767644]
[1757002340318,1e-08,204.49,204.47,13.62559401]
[1757002340825,0.72,204.48,204.47,13.62559401]
[1757002343832,1e-08,204.49,204.47,13.62559401]
[1757002344234,0.72,204.48,204.47,13.62559401]
[1757002344635,1e-08,204.49,204.47,23.04378967]
[1757002345135,0.72,204.48,204.47,23.04378967]
[1757002345482,1e-08,204.49,204.47,23.04378967]
[1757002345738,1e-08,204.49,204.48,4.52750265]
[1757002345938,1e-08,204.49,204.48,9.41795648]
[1757002346131,1e-08,204.49,204.48,23.01355049]
[1757002346537,1e-08,204.49,204.48,23.71355049]
[1757002346731,1e-08,204.49,204.48,23.01355049]
[1757002347238,1e-08,204.49,204.48,18.48604784]
[1757002347619,1e-08,204.49,204.48,13.59559401]
[1757002348035,1e-08,204.49,204.48,18.48604784]
[1757002348241,0.72000001,204.49,204.48,13.59559401]
[1757002348824,1e-08,204.49,204.48,13.59559401]
[1757002350049,1e-08,204.49,204.48,23.01355049]
[1757002350236,1e-08,204.49,204.48,23.71355049]
[1757002350630,1e-08,204.49,204.48,23.01355049]
[1757002351649,1e-08,204.49,204.48,23.71355049]
[1757002352639,1e-08,204.49,204.48,24.20259587]
[1757002354449,1e-08,204.49,204.48,18.48604784]
[1757002354829,1e-08,204.49,204.48,23.01355049]
[1757002355758,0.72000001,204.49,204.48,13.59559401]
[1757002357540,10.13771734,204.49,204.48,13.59559401]
[1757002358146,5.24750266,204.49,204.48,13.59559401]
[1757002359163,10.13771734,204.49,204.48,13.59559401]
[1757002359566,10.13771734,204.49,204.47,0.03]
[1757002359744,4.52750265,204.48,204.47,0.03]
[1757002360146,10.13795648,204.48,204.47,0.03]
[1757002361154,0.72,204.48,204.47,0.03]
[1757002361356,1e-08,204.49,204.47,0.03]
[1757002361554,0.72000001,204.49,204.47,0.03]
[1757002361761,5.24750265,204.48,204.47,0.03]
[1757002361969,0.72,204.48,204.47,0.03]
[1757002362563,1e-08,204.49,204.47,0.03]
[1757002362750,0.72000001,204.49,204.47,0.03]
[1757002362962,1e-08,204.49,204.47,13.62559401]
[1757002363346,1e-08,204.49,204.47,4.55750265]
[1757002363548,0.72000001,204.49,204.47,13.62559401]
[1757002363755,0.72,204.48,204.47,13.62559401]
[1757002363953,0.72,204.48,204.47,0.03]
[1757002366769,1e-08,204.49,204.47,13.62559401]
[1757002366946,1e-08,204.49,204.47,18.15309666]
[1757002367668,1e-08,204.49,204.48,18.12309666]
[1757002367868,1e-08,204.49,204.48,13.59559401]
[1757002368661,0.72000001,204.49,204.48,13.59559401]
[1757002368977,1e-08,204.49,204.48,13.59559401]
[1757002369975,1e-08,204.49,204.48,23.67355049]
[1757002371056,1e-08,204.49,204.48,19.14604784]
[1757002371756,1e-08,204.49,204.48,23.67355049]
[1757002372963,1e-08,204.49,204.48,19.14604784]
[1757002373169,1e-08,204.49,204.48,23.67355049]
[1757002374655,1e-08,204.49,204.48,19.14604784]
[1757002374879,1e-08,204.49,204.48,23.67355049]
[1757002376285,1e-08,204.49,204.48,23.01355049]
[1757002376965,1e-08,204.49,204.48,23.67355049]
[1757002377285,1e-08,204.49,204.48,23.01355049]
[1757002377486,1e-08,204.49,204.48,23.67355049]
[1757002380680,1e-08,204.49,204.48,23.70355049]
[1757002380987,1e-08,204.49,204.48,18.51604784]
[1757002381175,1e-08,204.49,204.48,23.04355049]
[1757002386087,1e-08,204.49,204.48,18.51604784]
[1757002386272,1e-08,204.49,204.48,23.04355049]
[1757002387286,1e-08,204.49,204.48,23.70355049]
[1757002388079,1e-08,204.49,204.48,23.04355049]
[1757002389090,1e-08,204.49,204.48,23.70355049]
[1757002389902,1e-08,204.49,204.48,146.51105314]
[1757002390523,0.06,204.51,204.5,39.59559401]
[1757002390697,0.06,204.51,204.5,87.41959686]
[1757002390890,0.06,204.51,204.5,92.96957241]
[1757002391390,0.06,204.51,204.5,93.00957241]
[1757002391897,0.06,204.53,204.51,13.59559401]
[1757002392098,0.06,204.53,204.52,56.42309666]
[1757002392466,0.06,204.53,204.52,57.08309666]
[1757002392991,0.06,204.53,204.52,61.97259401]
[1757002394680,0.06,204.53,204.52,23.01259401]
[1757002394887,0.06,204.53,204.52,61.95259401]
[1757002395580,0.06,204.53,204.52,23.01259401]
[1757002395783,0.06,204.53,204.52,61.29259401]
[1757002396197,0.06,204.53,204.52,61.95259401]
[1757002398508,0.06,204.53,204.52,61.29259401]
[1757002399295,0.06,204.53,204.52,61.96259401]
[1757002399697,0.06,204.53,204.52,61.29259401]
[1757002400109,0.06,204.53,204.52,61.96259401]
[1757002400411,0.06,204.54,204.53,13.59559401]
[1757002400706,0.06,204.54,204.53,18.61202248]
[1757002401205,0.06,204.54,204.53,18.12309666]
[1757002401504,0.06,204.54,204.53,54.77001429]
[1757002401909,0.71,204.54,204.53,16.49001429]
[1757002402105,0.71,204.54,204.53,54.77001429]
[1757002402407,0.71,204.54,204.53,21.37927258]
[1757002403893,0.71,204.54,204.53,18.4848523]
[1757002404093,0.71,204.54,204.53,21.37927258]
[1757002404995,0.71,204.54,204.53,18.4848523]
[1757002405319,0.71,204.54,204.53,21.37927258]
[1757002405522,0.71,204.54,204.53,18.4848523]
[1757002405806,0.71,204.54,204.53,21.37927258]
[1757002407224,0.71,204.54,204.53,18.4848523]
[1757002407409,0.71,204.54,204.53,21.37927258]
[1757002407991,0.71,204.54,204.53,18.4848523]
[1757002408421,0.71,204.54,204.53,21.37927258]
[1757002413511,0.71,204.54,204.53,18.4848523]
[1757002413707,0.71,204.54,204.53,21.37927258]
[1757002414028,0.71,204.54,204.53,18.4848523]
[1757002414211,0.71,204.54,204.53,21.37927258]
[1757002415211,0.71,204.54,204.53,18.4848523]
[1757002415422,0.71,204.54,204.53,21.37927258]
[1757002421128,0.71,204.54,204.53,16.49001429]
[1757002421314,0.71,204.54,204.53,21.37927258]
[1757002423223,0.71,204.54,204.53,18.4848523]
[1757002423532,0.71,204.54,204.53,21.37927258]
[1757002424130,0.71,204.54,204.53,18.4848523]
[1757002424330,0.71,204.54,204.53,21.37927258]
[1757002426124,0.71,204.54,204.53,18.4848523]
[1757002426423,0.71,204.54,204.53,21.37927258]
[1757002428719,0.71,204.54,204.53,18.4848523]
[1757002428907,0.71,204.54,204.53,21.37927258]
[1757002430312,0.71,204.54,204.53,18.4848523]
[1757002430510,0.71,204.54,204.53,21.37927258]
[1757002430811,0.71,204.54,204.53,18.4848523]
[1757002431012,0.71,204.54,204.53,21.37927258]
[1757002432237,0.71,204.54,204.53,21.40927258]
[1757002433631,0.71,204.54,204.53,0.03]
[1757002438939,0.71,204.54,204.53,13.62559401]
[1757002439435,0.71,204.54,204.53,0.03]
[1757002439743,0.71,204.54,204.53,13.62559401]
[1757002439928,0.06,204.54,204.53,22.05927258]
[1757002440317,0.06,204.54,204.53,18.5148523]
[1757002440833,0.06,204.54,204.53,13.62559401]
[1757002441139,0.75,204.54,204.53,13.62559401]
[1757002441439,0.06,204.54,204.53,21.40927258]
[1757002442320,0.06,204.54,204.53,22.05927258]
[1757002443054,0.06,204.54,204.53,19.1648523]
[1757002443243,0.06,204.54,204.53,22.05927258]
[1757002443830,0.06,204.54,204.53,19.1648523]
[1757002444019,0.06,204.54,204.53,22.05927258]
[1757002445133,0.75,204.54,204.53,13.62559401]
[1757002446455,3.64442028,204.54,204.53,13.62559401]
[1757002446761,0.75,204.54,204.53,13.62559401]
[1757002450653,3.64442028,204.54,204.53,13.62559401]
[1757002451039,0.75,204.54,204.53,13.62559401]
[1757002453554,8.53343954,204.54,204.53,13.62559401]
[1757002453737,5.63901926,204.54,204.53,0.03]
[1757002454057,3.64442028,204.54,204.53,0.03]
[1757002454234,6.53884056,204.54,204.53,0.03]
[1757002454835,3.64442028,204.54,204.53,0.03]
[1757002455056,6.53884056,204.54,204.53,0.03]
[1757002455853,11.42785982,204.54,204.53,0.03]
[1757002456238,6.53884056,204.54,204.53,0.03]
[1757002457352,11.42785982,204.54,204.53,0.03]
[1757002458755,6.53884056,204.54,204.53,0.03]
[1757002458966,38.99,204.54,204.53,0.03]
[1757002459158,41.88442028,204.54,204.53,0.03]
[1757002459855,46.77343954,204.54,204.53,0.03]
[1757002461054,8.53343954,204.54,204.53,0.03]
[1757002461246,46.77343954,204.54,204.53,0.03]
[1757002461446,43.87901926,204.54,204.53,0.03]
[1757002461654,46.77343954,204.54,204.53,0.03]
[1757002463062,48.7334072,204.54,204.53,0.03]
[1757002463537,50.36667738,204.54,204.53,0.03]
[1757002463851,45.47765812,204.54,204.53,0.03]
[1757002464054,50.36667738,204.54,204.53,0.03]
[1757002464347,45.47765812,204.54,204.53,0.03]
[1757002466831,50.36667738,204.54,204.53,0.03]
[1757002469860,12.12667738,204.54,204.53,0.03]
[1757002470049,50.36667738,204.54,204.53,0.03]
[1757002473952,45.47765812,204.54,204.53,0.03]
[1757002474361,6.54765812,204.54,204.53,0.03]
[1757002474569,44.78765812,204.54,204.53,0.03]
[1757002475258,2.01996766,204.54,204.53,0.03]
[1757002475582,38.3,204.54,204.53,0.03]
[1757002475969,42.82769046,204.54,204.53,0.03]
[1757002477051,38.3,204.54,204.53,0.03]
[1757002477254,0.06,204.54,204.53,14.31559401]
[1757002479062,0.06,204.54,204.53,13.62559401]
[1757002483056,0.06,204.54,204.53,14.31559401]
[1757002483256,0.06,204.54,204.53,13.62559401]
[1757002485877,0.06,204.54,204.53,19.2048523]
[1757002486071,0.06,204.54,204.53,13.62559401]
[1757002488464,0.06,204.54,204.53,19.2148523]
[1757002488665,0.06,204.54,204.53,18.15328447]
[1757002490082,0.06,204.54,204.53,13.62559401]
[1757002491781,0.06,204.54,204.53,23.74254276]
[1757002491977,0.06,204.54,204.53,18.15328447]
[1757002494382,0.06,204.54,204.53,13.62559401]
[1757002495386,0.06,204.54,204.53,18.5148523]
[1757002495607,0.06,204.54,204.53,23.04254276]
[1757002496074,0.06,204.54,204.53,23.74254276]
[1757002496274,0.06,204.54,204.53,23.04254276]
[1757002496480,0.06,204.54,204.53,18.5148523]
[1757002496788,0.06,204.54,204.53,23.04254276]
[1757002499198,0.06,204.54,204.53,18.5148523]
[1757002499670,0.06,204.54,204.53,23.04254276]
[1757002500600,0.06,204.54,204.53,13.62559401]
[1757002500795,0.06,204.54,204.53,23.04254276]
[1757002500991,0.06,204.54,204.53,23.74254276]
[1757002502292,0.06,204.54,204.53,19.2148523]
[1757002502501,0.06,204.54,204.53,23.74254276]
[1757002502793,0.06,204.54,204.53,18.5148523]
[1757002502998,0.06,204.54,204.53,18.15328447]
[1757002503386,0.06,204.54,204.53,23.04254276]
[1757002504004,0.06,204.54,204.53,13.62559401]
[1757002504005,0.72,204.54,204.53,13.62559401]
[1757002504792,5.24769046,204.54,204.53,13.62559401]
[1757002505983,0.72,204.54,204.53,13.62559401]
[1757002506897,38.94,204.54,204.53,13.62559401]
[1757002508501,43.82901926,204.54,204.53,0.03]
[1757002509001,48.35670972,204.54,204.53,0.03]
[1757002509573,43.82901926,204.54,204.53,0.03]
[1757002509803,38.94,204.54,204.53,0.03]
[1757002510006,0.72,204.54,204.53,0.03]
[1757002510380,38.94,204.54,204.53,0.03]
[1757002510908,48.35670972,204.54,204.53,0.03]
[1757002511599,45.78908296,204.54,204.53,0.03]
[1757002511791,50.31677342,204.54,204.53,0.03]
[1757002512601,50.31677342,204.54,204.52,1e-08]
[1757002512807,4.52769046,204.53,204.52,1e-08]
[1757002513185,10.07694875,204.53,204.52,1e-08]
[1757002513806,48.29694875,204.53,204.52,1e-08]
[1757002514282,52.82463921,204.53,204.52,1e-08]
[1757002514487,26.0,204.51,204.5,0.03]
[1757002514691,35.05538092,204.51,204.5,0.03]
[1757002514896,35.71538092,204.51,204.5,0.03]
[1757002515191,42.56585362,204.51,204.46,0.03]
[1757002515392,4.52769046,204.49,204.46,0.03]
[1757002515603,26.0,204.48,204.46,0.03]
[1757002515790,31.18769046,204.48,204.46,0.03]
[1757002515992,31.18769046,204.48,204.46,1e-08]
[1757002516201,42.74769046,204.47,204.46,1e-08]
[1757002516707,45.3689074,204.47,204.46,1e-08]
[1757002517299,45.3689074,204.47,204.43,0.03]
[1757002517300,50.25960041,204.47,204.44,1e-08]
[1757002517484,4.52769046,204.45,204.44,1e-08]
[1757002517911,5.20769046,204.45,204.44,1e-08]
[1757002518204,43.42769046,204.45,204.44,1e-08]
[1757002519509,48.31886189,204.45,204.44,1e-08]
[1757002520012,52.31999062,204.45,204.44,1e-08]
[1757002522208,54.28130372,204.45,204.44,1e-08]
[1757002523499,52.65479043,204.45,204.44,1e-08]
[1757002524003,49.75361326,204.45,204.44,1e-08]
[1757002524206,14.43479043,204.45,204.44,1e-08]
[1757002524415,52.65479043,204.45,204.44,1e-08]
[1757002525120,14.43479043,204.45,204.44,1e-08]
[1757002525321,52.65479043,204.45,204.44,1e-08]
[1757002529518,52.65479043,204.45,204.39,0.03]
[1757002529519,26.0,204.43,204.39,0.03]
[1757002529724,78.72588585,204.43,204.39,0.03]
[1757002529903,79.40588585,204.43,204.39,0.03]
[1757002530099,81.3674875,204.43,204.41,1e-08]
[1757002530313,14.50588585,204.42,204.41,1e-08]
[1757002530620,19.39777509,204.42,204.39,0.03]
[1757002530799,53.40588585,204.41,204.39,0.03]
[1757002531206,26.0,204.39,204.38,0.03]
[1757002531523,67.12117717,204.39,204.38,0.03]
[1757002531721,67.80117717,204.39,204.38,0.03]
[1757002531928,69.76316368,204.39,204.38,0.03]
[1757002532826,36.43577095,204.39,204.38,0.03]
[1757002533027,74.65577095,204.39,204.38,0.03]
[1757002535710,36.43577095,204.39,204.38,0.03]
[1757002535914,74.67577095,204.39,204.38,0.03]
[1757002536318,73.97577095,204.39,204.38,0.03]
[1757002536722,35.75577095,204.39,204.38,0.03]
[1757002536922,73.97577095,204.39,204.38,0.03]
[1757002537724,74.65577095,204.39,204.38,0.03]
[1757002538525,74.67577095,204.39,204.38,0.03]
[1757002539931,36.43577095,204.39,204.38,0.03]
[1757002540130,74.67577095,204.39,204.38,0.03]
[1757002541125,35.75577095,204.39,204.38,0.03]
[1757002541329,73.97577095,204.39,204.38,0.03]
[1757002541533,35.75577095,204.39,204.38,0.03]
[1757002541708,73.97577095,204.39,204.38,0.71]
[1757002542223,28.90117717,204.39,204.38,0.71]
[1757002542434,2.90117717,204.4,204.38,0.71]
[1757002542739,16.2892051,204.45,204.39,13.59559401]
[1757002542907,2.90117717,204.42,204.4,0.68]
[1757002543225,38.22,204.41,204.4,0.68]
[1757002543427,4.89146138,204.44,204.41,13.59559401]
[1757002543629,41.12117717,204.43,204.42,0.68]
[1757002544704,0.06,204.45,204.43,13.59559401]
[1757002544908,0.06,204.45,204.44,14.27559401]
[1757002545104,41.18117717,204.45,204.39,4.89255756]
[1757002545330,38.28,204.45,204.4,17.17677118]
[1757002545524,41.18117717,204.45,204.42,13.59559401]
[1757002545721,46.07237516,204.45,204.42,13.59559401]
[1757002545920,26.0,204.42,204.39,13.59559401]
[1757002546124,2.90117717,204.4,204.39,14.27559401]
[1757002546323,2.90117717,204.4,204.38,13.62559401]
[1757002546525,41.12117717,204.39,204.38,13.62559401]
[1757002546821,41.12117717,204.39,204.38,0.71]
[1757002547222,38.22,204.39,204.38,0.71]
[1757002548816,43.11260727,204.39,204.38,0.03]
[1757002549016,46.68378444,204.39,204.38,0.03]
[1757002549730,46.01378444,204.39,204.38,0.03]
[1757002550128,46.68378444,204.39,204.38,0.03]
[1757002551324,46.74378444,204.39,204.38,0.03]
[1757002554622,48.70548229,204.39,204.38,0.03]
[1757002557236,6.91430512,204.39,204.38,0.03]
[1757002557536,6.91430512,204.39,204.38,14.32559401]
[1757002557537,0.06,204.39,204.38,14.32559401]
[1757002557732,0.06,204.39,204.38,17.22677118]
[1757002557941,0.06,204.42,204.39,13.59559401]
[1757002558147,38.22,204.41,204.4,16.49677118]
[1757002558438,38.22,204.41,204.4,14.23559401]
[1757002560842,0.06,204.42,204.41,13.59559401]
[1757002561028,0.06,204.42,204.41,17.13677118]
[1757002563247,0.06,204.42,204.41,22.02889974]
[1757002563947,0.06,204.42,204.41,17.13677118]
[1757002566423,0.06,204.42,204.41,22.02889974]
[1757002577843,0.06,204.42,204.41,18.48772257]
[1757002578168,0.78,204.42,204.4,13.59559401]
[1757002578339,0.78,204.42,204.41,16.49677118]
[1757002578542,0.78,204.42,204.41,13.59559401]
[1757002579038,3.68117717,204.42,204.41,13.59559401]
[1757002579235,4.89212856,204.41,204.38,0.03]
[1757002579437,2.90117717,204.4,204.38,0.03]
[1757002579637,38.18,204.39,204.38,0.03]
[1757002580060,38.9,204.39,204.38,0.03]
[1757002580357,41.80117717,204.39,204.38,0.03]
[1757002581455,46.69378444,204.39,204.38,0.03]
[1757002584764,26.0,204.36,204.35,0.03]
[1757002584949,67.08117717,204.36,204.35,0.03]
[1757002585151,67.80117717,204.36,204.35,0.03]
[1757002585452,74.33062026,204.36,204.35,0.03]
[1757002587173,36.15062026,204.36,204.35,0.03]
[1757002588281,74.33062026,204.36,204.35,0.03]
[1757002588882,88.56621427,204.36,204.35,0.03]
[1757002592771,50.38621427,204.36,204.35,0.03]
[1757002592970,45.12891951,204.36,204.35,0.03]
[1757002593188,38.18,204.36,204.35,0.03]
[1757002593378,4.53729476,204.39,204.36,13.59559401]
[1757002593579,38.18,204.38,204.36,13.59559401]
[1757002593766,4.53729476,204.39,204.36,13.59559401]
[1757002594078,38.18,204.38,204.37,14.23559401]
[1757002594285,0.06,204.42,204.37,18.77288877]
[1757002594460,38.18,204.41,204.38,0.64]
[1757002595185,47.60948996,204.41,204.37,13.59559401]
[1757002595384,47.60948996,204.41,204.37,14.23559401]
[1757002595560,42.71729476,204.41,204.38,0.64]
[1757002595880,42.71729476,204.41,204.37,13.59559401]
[1757002596073,42.71729476,204.41,204.37,14.23559401]
[1757002596454,47.60954376,204.41,204.37,14.23559401]
[1757002596659,5.25729476,204.4,204.35,18.16288877]
[1757002596859,0.06,204.42,204.35,13.62559401]
[1757002596860,4.53729476,204.38,204.35,13.62559401]
[1757002597076,38.18,204.37,204.35,13.62559401]
[1757002597282,38.18,204.37,204.35,0.03]
[1757002599386,38.18,204.37,204.35,0.67]
[1757002599774,38.18,204.37,204.35,4.56729476]
[1757002599981,38.18,204.37,204.36,14.23559401]
[1757002600162,38.18,204.37,204.36,13.59559401]
[1757002600974,4.89213326,204.41,204.36,14.23559401]
[1757002601173,0.78,204.42,204.37,18.77288877]
[1757002601373,5.31729476,204.42,204.37,18.77288877]
[1757002601583,38.16,204.41,204.37,18.77288877]
[1757002601767,38.16,204.4,204.37,18.77288877]
[1757002601971,38.16,204.39,204.38,14.23559401]
[1757002602786,38.16,204.39,204.38,13.59559401]
[1757002603682,43.41729476,204.39,204.38,13.59559401]
[1757002603988,38.88,204.39,204.38,13.59559401]
[1757002605396,38.16,204.39,204.38,13.59559401]
[1757002605796,0.06,204.4,204.39,13.59559401]
[1757002605984,38.22,204.4,204.39,13.59559401]
[1757002606179,0.06,204.4,204.39,13.59559401]
[1757002606578,38.22,204.4,204.39,13.59559401]
[1757002608594,38.22,204.4,204.38,13.59559401]
[1757002608797,38.22,204.4,204.39,5.17729476]
[1757002609089,0.06,204.4,204.39,5.17729476]
[1757002609297,0.06,204.4,204.39,4.53729476]
[1757002611097,5.25729476,204.4,204.37,13.59559401]
[1757002611297,38.16,204.39,204.37,13.59559401]
[1757002611498,38.16,204.39,204.36,13.59559401]
[1757002613697,4.53729476,204.37,204.35,0.03]
[1757002613890,42.67729476,204.36,204.35,0.03]
[1757002614209,38.8,204.36,204.35,0.03]
[1757002614380,43.33729476,204.36,204.35,0.03]
[1757002615302,48.23062026,204.36,204.35,0.03]
[1757002618298,0.66,204.39,204.35,0.03]
[1757002618505,38.14,204.38,204.35,0.03]
[1757002621091,5.19729476,204.37,204.35,0.03]
[1757002621411,38.14,204.36,204.35,0.03]
[1757002622183,0.66,204.37,204.35,0.03]
[1757002622384,0.06,204.4,204.36,4.53729476]
[1757002622612,0.06,204.4,204.39,13.59559401]
[1757002622814,0.06,204.4,204.39,18.13288877]
[1757002623107,0.06,204.4,204.39,23.66549604]
[1757002623282,0.06,204.4,204.35,0.03]
[1757002623283,5.25729476,204.4,204.35,0.03]
[1757002623487,4.53729476,204.37,204.35,0.03]
[1757002623697,38.14,204.36,204.35,0.03]
[1757002623891,43.33729476,204.36,204.35,0.03]
[1757002624785,38.8,204.36,204.35,0.03]
[1757002624999,48.23062026,204.36,204.35,0.03]
[1757002625199,43.6933255,204.36,204.35,0.03]
[1757002625396,48.23062026,204.36,204.35,0.03]
[1757002628617,26.0,204.33,204.32,0.03]
[1757002628926,26.0,204.33,204.3,0.03]
[1757002628927,26.0,204.31,204.3,0.03]
[1757002629211,78.10911254,204.31,204.3,0.03]
[1757002629412,78.76911254,204.31,204.3,0.03]
[1757002629802,74.23181778,204.31,204.3,0.03]
[1757002634314,78.08758241,204.31,204.3,0.03]
[1757002634806,39.94758241,204.31,204.3,0.03]
[1757002635119,78.08758241,204.31,204.3,0.03]
[1757002635807,39.94758241,204.31,204.3,0.03]
[1757002636010,78.08758241,204.31,204.3,0.03]